bitfinex-derivatives/quotes_SOLF0:USTF0_20250127
["timestamp","ask_amount","ask_price","bid_price","bid_amount"]
[1737981721908,16.55658681,226.72,226.52,16.55658681]
[1737981722108,16.55658681,226.77,226.56,16.55658681]
[1737981722408,16.55658681,226.77,226.64,0.02807692]
[1737981722598,4.2963,226.81,226.64,0.02807692]
[1737981722803,4.4118,226.77,226.64,0.02807692]
[1737981723113,4.2963,226.81,226.68,0.02859325]
[1737981723308,4.2963,226.81,226.69,4.4131]
[1737981723605,4.2963,226.81,226.64,16.55658681]
[1737981723810,4.4113,226.79,226.73,0.0335996]
[1737981724004,4.2963,226.81,226.73,0.0335996]
[1737981724410,16.55658681,226.86,226.73,0.0335996]
[1737981725516,4.411,226.81,226.73,0.0335996]
[1737981726015,4.4108,226.82,226.73,0.0335996]
[1737981726511,16.55658681,226.9,226.73,0.0335996]
[1737981726718,16.55658681,226.95,226.79,4.4113]
[1737981727015,16.55658681,226.95,226.84,0.0327976]
[1737981728812,1.58751,226.98,226.84,0.0327976]
[1737981729017,0.16161,226.98,226.81,1.3704]
[1737981729213,0.16161,226.98,226.84,16.55658681]
[1737981729418,0.16161,226.98,226.89,0.0335492]
[1737981730411,4.56921,226.98,226.9,4.4091]
[1737981731123,4.4082,226.96,226.89,0.0335492]
[1737981731318,0.16161,226.98,226.89,0.0335492]
[1737981732213,0.16161,226.98,226.95,4.4081]
[1737981732813,0.16161,226.98,226.94,0.02917909]
[1737981733321,0.16161,226.98,226.96,4.4079]
[1737981733720,0.16161,226.98,226.94,0.02917909]
[1737981734423,4.4062,227.06,226.96,20.96448681]
[1737981734622,1.4333,227.09,226.96,16.55658681]
[1737981734923,1.4333,227.09,226.99,0.03379841]
[1737981735223,16.55658681,227.0,226.82,19.37648681]
[1737981735422,16.55658681,227.0,226.83,0.88171758]
[1737981735723,16.55658681,227.04,226.83,0.88171758]
[1737981736225,16.55658681,226.97,226.83,0.88171758]
[1737981736418,16.55658681,226.93,226.83,0.88171758]
[1737981736716,4.4103,226.84,226.83,0.88171758]
[1737981736918,16.55658681,226.85,226.7,3.06]
[1737981737123,16.55658681,226.85,226.71,0.88218428]
[1737981737622,0.03023213,226.8,226.76,0.0302206]
[1737981737814,4.4115,226.78,226.76,0.0302206]
[1737981738515,26.7269545,226.77,226.55,29.7869545]
[1737981738723,26.7269545,226.77,226.56,0.88276836]
[1737981738921,26.7269545,226.72,226.56,5.29846836]
[1737981739222,26.7269545,226.72,226.56,0.88276836]
[1737981739624,0.02974862,226.66,226.62,0.03074653]
[1737981741026,0.02974862,226.66,226.62,26.75770103]
[1737981741225,1.3591,226.8,226.62,26.75770103]
[1737981741525,1.3591,226.8,226.67,4.4135]
[1737981741728,26.7269545,226.9,226.7,26.7269545]
[1737981742020,0.88148441,226.89,226.74,26.7269545]
[1737981742226,5.29088441,226.89,226.78,4.4114]
[1737981742428,0.02996271,226.84,226.79,0.02949233]
[1737981742825,0.88152327,226.88,226.74,26.7269545]
[1737981743025,0.02885851,226.84,226.79,0.03292775]
[1737981746128,0.02885851,226.84,226.82,4.4107]
[1737981747025,0.02885851,226.84,226.79,0.03292775]
[1737981747228,0.02885851,226.84,226.79,4.44422775]
[1737981747629,0.02885851,226.84,226.79,0.03292775]
[1737981748029,0.02885851,226.84,226.81,4.4109]
[1737981748830,0.02885851,226.84,226.8,4.4111]
[1737981749136,0.02885851,226.84,226.79,0.03292775]
[1737981749630,0.02885851,226.84,226.82,4.4107]
[1737981750529,0.02885851,226.84,226.81,4.4109]
[1737981750726,0.02885851,226.84,226.79,0.03292775]
[1737981751632,4.43935851,226.84,226.79,0.03292775]
[1737981751927,0.02885851,226.84,226.79,0.03292775]
[1737981752631,0.02885851,226.84,226.82,4.4107]
[1737981752828,0.02885851,226.84,226.79,0.03292775]
[1737981753035,5.851e-05,226.84,226.79,0.03292775]
[1737981753227,5.851e-05,226.84,226.79,1.42762775]
[1737981753937,5.851e-05,226.84,226.83,4.4105]
[1737981754835,5.851e-05,226.84,226.79,0.03292775]
[1737981755334,5.851e-05,226.84,226.83,4.4105]
[1737981759537,1.4374,226.99,226.95,4.408]
[1737981759739,1.4374,226.99,226.86,26.7269545]
[1737981760239,1.4374,226.99,226.96,4.408]
[1737981760440,26.7269545,227.08,226.86,26.7269545]
[1737981760640,0.02939457,227.0,226.95,0.03187313]
[1737981760938,16.40261049,227.06,226.85,16.40261049]
[1737981761141,0.02892202,227.0,226.95,0.0291542]
[1737981762131,1.48132202,227.0,226.95,0.0291542]
[1737981763338,4.4076,226.98,226.95,0.0291542]
[1737981763640,1.48132202,227.0,226.95,0.0291542]
[1737981763939,1.48132202,227.0,226.92,4.4087]
[1737981764140,4.4082,226.96,226.9,4.409]
[1737981764638,4.4078,226.97,226.92,4.4087]
[1737981764830,1.4524,227.0,226.82,16.40261049]
[1737981765336,0.03021415,226.93,226.89,0.03338921]
[1737981765541,0.03021415,226.93,226.92,4.4087]
[1737981766039,4.407,227.02,226.98,4.4076]
[1737981766343,16.40261049,227.01,226.82,16.40261049]
[1737981766639,4.4084,226.95,226.82,16.40261049]
[1737981766840,16.40261049,227.01,226.82,16.40261049]
[1737981767041,4.4081,226.96,226.9,4.409]
[1737981767241,0.03281491,226.94,226.89,0.03088782]
[1737981767738,0.03281491,226.94,226.9,4.409]
[1737981767934,0.03281491,226.94,226.89,0.03088782]
[1737981768434,0.03281491,226.94,226.93,4.4086]
[1737981769341,1.491e-05,226.94,226.93,4.4086]
[1737981769740,2.7804,227.07,227.0,4.407]
[1737981770241,2.7804,227.07,226.91,16.40261049]
[1737981770542,2.7804,227.07,226.87,16.40261049]
[1737981770738,16.40261049,227.06,226.94,4.4083]
[1737981770934,16.40261049,227.06,226.95,0.03246141]
[1737981771340,16.40261049,227.02,226.83,16.40261049]
[1737981771738,16.40261049,227.06,226.83,16.40261049]
[1737981771942,16.40261049,227.06,226.93,4.4086]
[1737981772241,16.40261049,227.06,226.87,16.40261049]
[1737981772441,4.43802981,227.02,226.97,4.4076]
[1737981772735,0.03122981,227.02,226.97,0.03324855]
[1737981772942,0.03122981,227.02,227.0,4.4072]
[1737981773441,0.03122981,227.02,226.97,0.03324855]
[1737981773638,0.03122981,227.02,227.0,4.407]
[1737981773941,0.03122981,227.02,226.97,0.03324855]
[1737981774846,0.03122981,227.02,227.01,4.407]
[1737981777641,2.7649,227.19,227.05,4.4061]
[1737981777833,1.3723,227.14,226.97,0.03324855]
[1737981778036,4.4053,227.1,226.95,16.40261049]
[1737981778238,4.4053,227.1,227.05,4.4061]
[1737981778637,4.4055,227.09,226.95,16.40261049]
[1737981778836,1.3723,227.14,227.05,0.02851567]
[1737981779044,1.3723,227.14,226.99,16.40261049]
[1737981779238,17.77591049,227.19,227.13,4.4047]
[1737981779442,17.77591049,227.19,227.07,0.03174165]
[1737981779643,17.77591049,227.19,226.95,16.40261049]
[1737981779644,4.4053,227.1,226.99,16.40261049]
[1737981779841,16.40261049,227.15,227.11,0.02960616]
[1737981780041,1.3281,227.14,226.95,16.40261049]
[1737981780345,1.3281,227.14,227.11,0.03081287]
[1737981780546,1.3281,227.14,227.04,4.4064]
[1737981780748,4.4051,227.11,227.1,0.02867812]
[1737981781147,16.40261049,227.1,226.91,17.79191049]
[1737981781447,4.4065,227.04,226.91,17.79191049]
[1737981781648,4.4065,227.04,226.96,4.4079]
[1737981781946,4.4065,227.04,226.91,17.79191049]
[1737981782143,17.73521049,227.1,226.91,17.79191049]
[1737981782343,0.02815195,227.01,226.96,0.03362517]
[1737981783348,0.02815195,227.01,226.88,0.78653177]
[1737981783549,4.4076,226.99,226.92,4.4087]
[1737981783752,0.02815195,227.01,226.92,4.4087]
[1737981784050,4.408,226.96,226.89,4.4092]
[1737981784243,4.408,226.96,226.87,3.12]
[1737981784545,0.03200877,226.95,226.9,0.03179843]
[1737981785150,0.03200877,226.95,226.9,4.44099843]
[1737981785449,0.03200877,226.95,226.9,0.03179843]
[1737981786252,0.03200877,226.95,226.91,4.4089]
[1737981786551,0.03200877,226.95,226.9,0.03179843]
[1737981786850,0.03200877,226.95,226.93,4.4084]
[1737981787356,0.03200877,226.95,226.9,0.03179843]
[1737981787551,0.03200877,226.95,226.93,4.4084]
[1737981787849,0.03200877,226.95,226.9,0.03179843]
[1737981788057,4.4088,226.92,226.9,0.03179843]
[1737981788355,0.03200877,226.95,226.9,0.03179843]
[1737981788562,4.409,226.91,226.9,0.03179843]
[1737981789253,0.03200877,226.95,226.82,16.40261049]
[1737981789450,0.03200877,226.95,226.86,16.40261049]
[1737981789652,7.1234,226.97,226.92,4.4088]
[1737981789852,7.1234,226.97,226.86,16.40261049]
[1737981790057,1.3867,227.01,226.86,16.40261049]
[1737981790254,1.3867,227.01,226.9,16.40261049]
[1737981790558,0.02837394,226.96,226.91,0.0305444]
[1737981790759,7.394e-05,226.96,226.95,4.4082]
[1737981797560,7.394e-05,226.96,226.94,4.4084]
[1737981798260,7.394e-05,226.96,226.95,4.4082]
[1737981798856,7.394e-05,226.96,226.91,0.0305444]
[1737981799562,16.40268443,226.96,226.77,261.92199701]
[1737981799761,1.3705,226.95,226.78,0.78749385]
[1737981800066,4.4093,226.9,226.83,4.4105]
[1737981800255,1.3705,226.95,226.77,263.27389701]
[1737981800458,1.3705,226.95,226.77,246.87128652]
[1737981800663,16.40261049,226.92,226.8,4.411]
[1737981800863,0.0295693,226.88,226.84,0.03152568]
[1737981801065,0.0295693,226.88,226.77,244.12308652]
[1737981801760,4.4101,226.86,226.8,4.4111]
[1737981801960,4.4101,226.86,226.77,244.12308652]
[1737981802160,0.0295693,226.88,226.71,19.20051049]
[1737981802351,0.0295693,226.88,226.87,4.4097]
[1737981802559,1.395,226.99,226.84,16.40261049]
[1737981803355,1.395,226.99,226.85,0.78697987]
[1737981803859,0.032064,226.94,226.9,0.03285339]
[1737981804062,0.032064,226.94,226.93,4.4085]
[1737981805763,0.032064,226.94,226.91,4.4088]
[1737981806162,0.032064,226.94,226.9,0.03285339]
[1737981806364,0.032064,226.94,226.93,4.4086]
[1737981807866,6.4e-05,226.94,226.93,4.4086]
[1737981810466,6.4e-05,226.94,226.9,0.03285339]
[1737981812068,4.408464,226.94,226.9,0.03285339]
[1737981812867,4.4087,226.93,226.9,0.03285339]
[1737981813468,6.4e-05,226.94,226.9,0.03285339]
[1737981813670,4.408464,226.94,226.9,0.03285339]
[1737981815068,4.408464,226.94,226.9,4.44205339]
[1737981815768,6.4e-05,226.94,226.92,4.4088]
[1737981816169,6.4e-05,226.94,226.93,4.4086]
[1737981817463,6.4e-05,226.94,226.9,0.03285339]
[1737981818373,4.409,226.91,226.9,0.03285339]
[1737981819968,16.40267449,226.94,226.52,22.0823]
[1737981820271,4.4097,226.88,226.76,0.78707149]
[1737981820567,4.4097,226.88,226.84,4.4103]
[1737981820871,16.40261049,226.94,226.75,4.1511]
[1737981821072,16.40261049,226.94,226.76,0.78715326]
[1737981821272,4.44343733,226.87,226.83,4.4105]
[1737981821474,0.03363733,226.87,226.82,0.03067447]
[1737981821973,4.44353733,226.87,226.83,4.4105]
[1737981822767,0.03363733,226.87,226.86,4.4099]
[1737981823170,2.7906,226.99,226.83,16.40261049]
[1737981823372,7.198,226.99,226.83,16.40261049]
[1737981823567,2.7906,226.99,226.84,0.78672788]
[1737981824575,0.03124319,226.94,226.93,4.4086]
[1737981825177,0.03124319,226.94,226.91,0.02990075]
[1737981825477,4.4081,226.96,226.89,4.4093]
[1737981825776,4.4085,226.94,226.9,0.02918587]
[1737981826076,4.4085,226.94,226.86,4.4098]
[1737981826277,4.4086,226.93,226.9,0.02837173]
[1737981826779,0.0303046,226.94,226.9,0.02837173]
[1737981826979,4.409,226.92,226.9,0.02837173]
[1737981827480,0.0303046,226.94,226.9,0.02837173]
[1737981828180,0.0303046,226.94,226.76,3.04]
[1737981828378,9.10762558,227.05,226.75,20.55371049]
[1737981828575,16.40261049,226.93,226.8,4.4109]
[1737981828771,4.4098,226.87,226.75,20.55371049]
[1737981829279,16.40261049,226.93,226.75,20.55371049]
[1737981829578,0.03329668,226.86,226.82,0.03177735]
[1737981830281,4.44339668,226.86,226.82,4.44247735]
[1737981830581,4.44339668,226.86,226.82,0.03177735]
[1737981830879,4.4103,226.84,226.82,0.03177735]
[1737981831075,0.03329668,226.86,226.82,0.03177735]
[1737981831474,0.03329668,226.86,226.82,4.44247735]
[1737981832283,0.03329668,226.86,226.84,4.4103]
[1737981832782,0.03329668,226.86,226.82,0.03177735]
[1737981833375,0.03329668,226.86,226.82,4.44247735]
[1737981833582,0.03329668,226.86,226.82,0.03177735]
[1737981834084,4.4105,226.83,226.82,0.03177735]
[1737981834376,0.03329668,226.86,226.82,0.03177735]
[1737981834783,0.03329668,226.86,226.85,4.4101]
[1737981836684,4.4105,226.83,226.82,0.03177735]
[1737981836882,0.03329668,226.86,226.82,0.03177735]
[1737981837283,4.4104,226.84,226.82,0.03177735]
[1737981837988,0.03329668,226.86,226.82,0.03177735]
[1737981839091,0.03329668,226.86,226.69,189.18126875]
[1737981839387,0.03329668,226.86,226.7,2.7862]
[1737981839588,4.4109,226.81,226.77,4.4116]
[1737981840088,16.40261049,226.88,226.7,2.7862]
[1737981840280,0.02930983,226.81,226.77,0.0334614]
[1737981840789,4.4115,226.79,226.77,0.0334614]
[1737981841285,0.02930983,226.81,226.77,0.0334614]
[1737981841490,4.4115,226.78,226.77,0.0334614]
[1737981841695,0.02930983,226.81,226.77,0.0334614]
[1737981841996,4.44040983,226.81,226.77,0.0334614]
[1737981842295,0.02930983,226.81,226.77,0.0334614]
[1737981842496,0.02930983,226.81,226.8,4.4111]
[1737981843491,0.02930983,226.81,226.77,0.0334614]
[1737981844695,0.02930983,226.81,226.8,4.4111]
[1737981844895,0.02930983,226.81,226.77,0.0334614]
[1737981846002,4.4115,226.78,226.77,0.0334614]
[1737981847197,0.02930983,226.81,226.77,0.0334614]
[1737981850900,0.02930983,226.81,226.8,4.4111]
[1737981851390,0.02930983,226.81,226.77,0.0334614]
[1737981852492,0.02930983,226.81,226.8,4.4111]
[1737981855507,0.02930983,226.81,226.78,4.4114]
[1737981855802,0.02930983,226.81,226.77,0.0334614]
[1737981856706,0.02930983,226.81,226.8,4.4111]
[1737981858402,4.4089,226.92,226.81,4.4108]
[1737981858705,4.4089,226.92,226.77,16.40261049]
[1737981858907,4.4091,226.91,226.86,4.4098]
[1737981859602,4.44113992,226.91,226.87,4.4097]
[1737981859805,0.03203992,226.91,226.87,4.4097]
[1737981860102,4.4095,226.89,226.86,0.03054049]
[1737981860605,0.03203992,226.91,226.86,0.03054049]
[1737981860807,4.44113992,226.91,226.87,4.4097]
[1737981861305,0.03203992,226.91,226.9,4.4092]
[1737981861709,2.8657,227.03,226.86,0.03054049]
[1737981862008,4.4072,227.0,226.95,4.408]
[1737981862307,2.8657,227.03,226.85,16.40261049]
[1737981862499,4.4073,227.0,226.95,4.4081]
[1737981862703,2.8657,227.03,226.85,16.40261049]
[1737981863002,0.03202381,227.0,226.95,0.03386212]
[1737981863203,5.7598,227.05,226.89,16.40261049]
[1737981863204,4.4063,227.05,226.89,16.40261049]
[1737981863404,0.03012052,227.0,226.95,0.02927295]
[1737981863709,1.432,227.11,226.89,16.40261049]
[1737981863908,0.02988781,227.0,226.95,0.03081771]
[1737981864207,4.4067,227.03,226.98,4.4075]
[1737981864406,0.03009176,227.0,226.98,4.4075]
[1737981864707,0.03009176,227.0,226.95,0.03362678]
[1737981864907,0.03009176,227.0,226.99,4.4074]
[1737981865207,0.03009176,227.0,226.95,0.03362678]
[1737981866309,0.03009176,227.0,226.98,4.4076]
[1737981866709,0.03009176,227.0,226.95,0.03362678]
[1737981866910,0.03009176,227.0,226.99,4.4074]
[1737981868410,0.03009176,227.0,226.97,4.4078]
[1737981869313,0.03009176,227.0,226.95,0.03362678]
[1737981870012,0.03009176,227.0,226.99,4.4074]
[1737981870312,0.03009176,227.0,226.95,0.03362678]
[1737981871510,0.03009176,227.0,226.99,4.4074]
[1737981871710,0.03009176,227.0,226.95,0.03362678]
[1737981872111,4.43729176,227.0,226.96,4.408]
[1737981872313,0.03009176,227.0,226.95,0.03362678]
[1737981872612,0.03009176,227.0,226.97,4.4078]
[1737981872809,0.03009176,227.0,226.95,0.03362678]
[1737981873315,4.408,226.96,226.95,0.03362678]
[1737981873815,4.4077,226.98,226.95,0.03362678]
[1737981874011,0.03009176,227.0,226.95,0.03362678]
[1737981874715,4.4074,226.99,226.95,4.44182678]
[1737981875015,0.03009176,227.0,226.95,0.03362678]
[1737981875916,4.4075,226.99,226.95,4.44182678]
[1737981876117,4.4075,226.99,226.95,0.03362678]
[1737981877819,0.03009176,227.0,226.95,0.03362678]
[1737981878017,0.03009176,227.0,226.98,4.4074]
[1737981878217,0.03009176,227.0,226.95,0.03362678]
[1737981878614,0.03009176,227.0,226.98,4.4074]
[1737981878918,0.03009176,227.0,226.95,0.03362678]
[1737981880523,0.03009176,227.0,226.98,4.4076]
[1737981883326,0.03009176,227.0,226.99,4.4074]
[1737981884824,0.03009176,227.0,226.95,0.03362678]
[1737981885324,0.03009176,227.0,226.98,4.4075]
[1737981885826,0.03009176,227.0,226.95,0.03362678]
[1737981886023,0.03009176,227.0,226.99,4.4074]
[1737981887426,10.24687537,227.15,226.95,10.28050215]
[1737981887427,10.24687537,227.13,227.05,4.4062]
[1737981887622,10.24687537,227.13,226.95,10.28050215]
[1737981887827,10.24687537,227.13,226.95,10.24687537]
[1737981888028,4.4052,227.11,227.04,4.4063]
[1737981888224,10.24687537,227.13,227.04,4.4063]
[1737981888528,10.24687537,227.13,227.06,0.03387587]
[1737981889730,4.4055,227.09,227.06,0.03387587]
[1737981890425,4.4053,227.11,227.07,4.4057]
[1737981890725,10.24687537,227.13,227.06,0.03387587]
[1737981890924,4.4049,227.12,227.08,4.4055]
[1737981891129,10.24687537,227.19,227.06,0.03387587]
[1737981891432,13.01627537,227.25,227.1,10.24687537]
[1737981891628,13.01627537,227.25,227.1,10.2795538]
[1737981891928,13.01627537,227.25,227.15,0.02808002]
[1737981892130,10.24687537,227.22,227.15,0.02808002]
[1737981892529,4.4033,227.21,227.15,0.02808002]
[1737981893028,1.338,227.25,227.15,0.02808002]
[1737981893625,4.4029,227.23,227.16,4.404]
[1737981893926,16.37259279,227.29,227.15,0.02808002]
[1737981894228,16.37259279,227.29,227.09,16.37259279]
[1737981894427,16.37259279,227.29,227.2,0.0334896]
[1737981895022,1.382,227.31,227.2,0.0334896]
[1737981895228,1.382,227.31,227.25,4.4023]
[1737981895431,1.382,227.31,227.2,0.0334896]
[1737981895630,1.382,227.31,227.13,16.37259279]
[1737981895826,1.382,227.31,227.23,0.02995811]
[1737981898135,4.4022,227.26,227.23,0.02995811]
[1737981898332,1.382,227.31,227.23,0.02995811]
[1737981899737,4.4016,227.29,227.24,4.4024]
[1737981899939,16.37259279,227.41,227.23,0.02995811]
[1737981900335,16.37259279,227.41,227.25,16.37259279]
[1737981900637,4.1474,227.47,227.3,0.03298311]
[1737981900833,4.3989,227.44,227.3,0.03298311]
[1737981901030,4.1474,227.47,227.29,16.37259279]
[1737981901235,16.37259279,227.45,227.35,0.03208823]
[1737981901431,16.37259279,227.41,227.35,0.03208823]
[1737981901631,16.37259279,227.41,227.22,4.1393]
[1737981901632,16.37259279,227.37,227.22,4.1393]
[1737981901840,1.4522,227.36,227.23,4.4027]
[1737981902134,16.37259279,227.33,227.13,19.16909279]
[1737981902340,4.403,227.22,227.16,4.404]
[1737981902641,16.37259279,227.25,227.02,3.0]
[1737981902839,0.03286461,227.21,227.17,0.02823658]
[1737981903240,16.37259279,227.25,227.05,4.1345]
[1737981903436,16.37259279,227.17,227.05,2.7212]
[1737981903637,4.4052,227.11,226.97,4.1345]
[1737981903942,16.37259279,227.17,226.97,4.1345]
[1737981904142,0.02979558,227.06,227.02,0.02930356]
[1737981904440,16.37259279,227.13,226.97,4.1345]
[1737981904835,0.03113094,227.06,227.02,0.03349915]
[1737981905736,4.4074,227.0,226.96,244.12308652]
[1737981905938,16.37259279,227.01,226.88,1.3271]
[1737981906339,1.396,227.11,226.92,16.37259279]
[1737981906943,0.02917704,227.04,226.99,0.03174996]
[1737981907749,16.37259279,227.02,226.99,0.03174996]
[1737981907950,16.37259279,227.02,226.88,1.3271]
[1737981908652,16.37259279,227.02,226.91,4.4088]
[1737981909150,0.03022722,226.99,226.94,0.03007005]
[1737981910447,16.37259279,226.98,226.94,0.03007005]
[1737981910951,0.03022722,226.99,226.94,0.03007005]
[1737981911348,0.03022722,226.99,226.97,4.4078]
[1737981912348,2.722e-05,226.99,226.97,4.4078]
[1737981913649,16.37259279,227.17,226.95,17.72929279]
[1737981913949,16.37259279,227.17,226.96,0.78461085]
[1737981914145,2.6892,227.18,227.03,16.37259279]
[1737981914346,2.6892,227.18,227.13,4.4047]
[1737981914546,2.6892,227.18,227.04,2.7551]
[1737981914748,2.71709105,227.18,227.13,0.03029622]
[1737981915049,17.70529279,227.25,227.13,0.03029622]
[1737981915250,0.02859944,227.18,227.13,0.03029622]
[1737981916052,16.37259279,227.17,227.0,3.02]
[1737981916450,4.4047,227.13,227.03,4.4065]
[1737981916651,4.4047,227.13,227.0,3.02]
[1737981916854,16.37259279,227.17,227.0,3.02]
[1737981917053,16.37259279,227.21,227.03,16.37259279]
[1737981917349,0.03200046,227.11,227.06,0.0321129]
[1737981917649,1.3317,227.24,227.11,4.405]
[1737981917854,0.02786287,227.11,227.06,0.03129246]
[1737981918057,16.37259279,227.21,227.0,3.02]
[1737981918355,0.03273916,227.11,227.06,0.03318994]
[1737981918552,0.03273916,227.11,227.0,3.02]
[1737981918755,16.37259279,227.17,227.0,3.02]
[1737981918957,0.02810596,227.11,227.06,0.03149121]
[1737981920453,4.4053,227.1,227.06,0.03149121]
[1737981920758,0.02810596,227.11,227.06,0.03149121]
[1737981921960,1.3361,227.26,227.1,16.37259279]
[1737981922461,4.4028,227.23,227.16,4.404]
[1737981922662,1.3361,227.26,227.1,16.37259279]
[1737981922957,0.03169424,227.2,227.16,0.03353875]
[1737981924259,4.43509424,227.2,227.16,0.03353875]
[1737981924460,0.03169424,227.2,227.16,0.03353875]
[1737981925959,4.4039,227.18,227.16,0.03353875]
[1737981926254,0.03169424,227.2,227.16,0.03353875]
[1737981926460,0.03169424,227.2,227.1,4.4053]
[1737981926661,1.3903,227.21,227.1,4.4053]
[1737981927259,1.3903,227.21,227.05,16.37259279]
[1737981927751,0.03217247,227.15,227.11,0.0277697]
[1737981928062,0.03217247,227.15,227.13,4.4046]
[1737981928554,0.03217247,227.15,227.11,0.0277697]
[1737981928757,0.03217247,227.15,227.12,4.4049]
[1737981929258,0.03217247,227.15,227.11,0.0277697]
[1737981930260,0.03217247,227.15,227.11,4.4327697]
[1737981931158,0.03217247,227.15,227.12,4.4049]
[1737981931457,0.03217247,227.15,227.11,0.0277697]
[1737981931863,4.43667247,227.15,227.11,0.0277697]
[1737981932064,0.03217247,227.15,227.11,0.0277697]
[1737981932363,0.03217247,227.15,227.14,4.4045]
[1737981932566,1.3361,227.26,227.12,16.37259279]
[1737981932864,4.4029,227.23,227.19,4.4035]
[1737981933065,1.3361,227.26,227.12,16.37259279]
[1737981933361,4.4026,227.24,227.19,4.4034]
[1737981933668,0.0316036,227.24,227.19,0.03317757]
[1737981934667,0.0316036,227.24,227.23,4.4028]
[1737981934861,0.0316036,227.24,227.19,0.03317757]
[1737981935266,6.06508021,227.47,227.22,16.37259279]
[1737981935466,1.4527,227.46,227.34,16.37259279]
[1737981936065,1.4527,227.46,227.3,16.37259279]
[1737981936367,0.03219225,227.4,227.36,0.03025778]
[1737981937466,0.03219225,227.4,227.38,4.3998]
[1737981937660,0.03219225,227.4,227.36,0.03025778]
[1737981938061,0.03219225,227.4,227.36,4.43035778]
[1737981938368,0.03219225,227.4,227.36,0.03025778]
[1737981939566,0.03219225,227.4,227.38,4.3998]
[1737981939766,0.03219225,227.4,227.36,0.03025778]
[1737981941472,4.3999,227.38,227.36,0.03025778]
[1737981941866,4.4,227.37,227.36,0.03025778]
[1737981942067,9.225e-05,227.4,227.39,4.3997]
[1737981943571,4.3971,227.52,227.38,16.37259279]
[1737981943773,4.3971,227.52,227.39,1.4377]
[1737981944076,2.9147,227.57,227.44,4.3986]
[1737981944270,4.3973,227.51,227.44,4.3986]
[1737981944665,4.3973,227.51,227.45,0.03207107]
[1737981944865,2.9147,227.57,227.45,0.03207107]
[1737981946474,4.3983,227.46,227.45,0.03207107]
[1737981947070,2.9147,227.57,227.45,0.03207107]
[1737981947573,4.3983,227.46,227.45,0.03207107]
[1737981947774,2.9147,227.57,227.45,0.03207107]
[1737981948077,16.37259279,227.54,227.45,0.03207107]
[1737981948676,4.398,227.48,227.45,0.03207107]
[1737981948872,2.9147,227.57,227.45,0.03207107]
[1737981949171,4.3979,227.48,227.45,0.03207107]
[1737981949674,2.9147,227.57,227.45,0.03207107]
[1737981950773,4.3975,227.51,227.46,4.3983]
[1737981951175,2.9147,227.57,227.45,0.03207107]
[1737981951376,4.3979,227.49,227.45,0.03207107]
[1737981952676,2.9147,227.57,227.45,0.03207107]
[1737981952875,4.3979,227.48,227.45,0.03207107]
[1737981953276,16.37259279,227.54,227.45,0.03207107]
[1737981953482,4.3983,227.46,227.45,0.03207107]
[1737981953682,16.37259279,227.5,227.31,16.37259279]
[1737981953979,16.37259279,227.5,227.29,1.3693]
[1737981954175,16.37259279,227.5,227.32,16.37259279]
[1737981954373,16.37259279,227.41,227.21,16.37259279]
[1737981954581,4.4007,227.34,227.24,1.3693]
[1737981954780,16.37259279,227.5,227.3,16.37259279]
[1737981954976,4.3988,227.44,227.3,16.37259279]
[1737981955173,0.02983997,227.42,227.3,16.37259279]
[1737981955377,0.02983997,227.42,227.35,0.02981267]
[1737981956072,0.02983997,227.42,227.4,4.3995]
[1737981956377,0.02983997,227.42,227.35,0.02981267]
[1737981956573,0.02983997,227.42,227.39,4.3997]
[1737981956776,0.02983997,227.42,227.35,0.02981267]
[1737981957273,16.37259279,227.54,227.35,0.02981267]
[1737981957472,16.37259279,227.54,227.35,1.4604]
[1737981957883,4.3979,227.48,227.4,4.3993]
[1737981958181,4.3979,227.48,227.34,16.37259279]
[1737981958382,0.02038682,227.46,227.42,0.03232877]
[1737981959080,0.02038682,227.46,227.42,4.43142877]
[1737981959884,0.02038682,227.46,227.42,0.03232877]
[1737981962883,0.02038682,227.46,227.43,4.3988]
[1737981963082,0.02038682,227.46,227.42,0.03232877]
[1737981963585,0.02038682,227.46,227.45,4.3985]
[1737981964383,1.4344,227.55,227.42,0.03232877]
[1737981964590,1.4344,227.55,227.5,4.3975]
[1737981964783,16.37259279,227.59,227.42,16.40492156]
[1737981965083,1.4183,227.61,227.46,16.37259279]
[1737981965282,16.37259279,227.67,227.47,1.3851]
[1737981965681,16.37259279,227.67,227.58,4.3958]
[1737981966285,16.37259279,227.67,227.6,0.0333485]
[1737981966888,2.7704,227.69,227.6,0.0333485]
[1737981967186,1.4183,227.69,227.6,0.0333485]
[1737981967481,16.37259279,227.72,227.6,0.0333485]